[Event "*** Titled Tuesday Blitz"]
[Site "Chess.com"]
[Date "2020.05.12"]
[Round "5"]
[White "26andrej26"]
[Black "Norival"]
[Result "0-1"]
[WhiteElo "2479"]
[BlackElo "2687"]
[TimeControl "180+1"]
[EndTime "10:56:39 PDT"]
[Termination "Norival won by resignation"]

1. e4 {[%clk 0:02:47]} 1... e5 {[%clk 0:02:59.7]} 2. Nf3 {[%clk 0:02:46.8]} 2...
Nc6 {[%clk 0:02:59.8]} 3. Bb5 {[%clk 0:02:47.4]} 3... a6 {[%clk 0:02:58.8]} 4.
Ba4 {[%clk 0:02:47.6]} 4... Nf6 {[%clk 0:02:58.4]} 5. O-O {[%clk 0:02:47.6]}
5... Be7 {[%clk 0:02:58.4]} 6. Re1 {[%clk 0:02:46.6]} 6... b5 {[%clk 0:02:58.4]}
7. Bb3 {[%clk 0:02:46.8]} 7... O-O {[%clk 0:02:55.5]} 8. c3 {[%clk 0:02:46.4]}
8... d6 {[%clk 0:02:54.4]} 9. h3 {[%clk 0:02:46.1]} 9... Nb8 {[%clk 0:02:54.5]}
10. d4 {[%clk 0:02:45.8]} 10... Nbd7 {[%clk 0:02:55.1]} 11. Nbd2 {[%clk
0:02:43.1]} 11... Bb7 {[%clk 0:02:54.2]} 12. Bc2 {[%clk 0:02:41.2]} 12... Re8
{[%clk 0:02:53.3]} 13. b3 {[%clk 0:02:36.4]} 13... c6 {[%clk 0:02:42.9]} 14. Bb2
{[%clk 0:02:33.5]} 14... Bf8 {[%clk 0:02:42.5]} 15. c4 {[%clk 0:02:31.3]} 15...
exd4 {[%clk 0:02:40.5]} 16. Nxd4 {[%clk 0:02:28.7]} 16... g6 {[%clk 0:02:33.7]}
17. a4 {[%clk 0:01:56.5]} 17... b4 {[%clk 0:02:32.2]} 18. Ne2 {[%clk 0:01:42.7]}
18... Bg7 {[%clk 0:02:25.1]} 19. Ng3 {[%clk 0:01:39.2]} 19... c5 {[%clk
0:02:08.5]} 20. Nf3 {[%clk 0:01:28.3]} 20... Qc7 {[%clk 0:02:07.6]} 21. Rb1
{[%clk 0:01:24.9]} 21... Rad8 {[%clk 0:02:02.7]} 22. Qd2 {[%clk 0:01:22.7]}
22... Ne5 {[%clk 0:01:35.1]} 23. Nh2 {[%clk 0:01:17.7]} 23... Re7 {[%clk
0:01:26.2]} 24. f4 {[%clk 0:01:15.5]} 24... Nc6 {[%clk 0:01:23.8]} 25. Nf3
{[%clk 0:00:34]} 25... Ne8 {[%clk 0:00:46]} 26. Bxg7 {[%clk 0:00:30]} 26... Nxg7
{[%clk 0:00:46.9]} 27. f5 {[%clk 0:00:29.9]} 27... f6 {[%clk 0:00:39.3]} 28. Qh6
{[%clk 0:00:13.9]} 28... Ne5 {[%clk 0:00:29.8]} 29. Nxe5 {[%clk 0:00:11.9]}
29... Rxe5 {[%clk 0:00:30.7]} 30. fxg6 {[%clk 0:00:10.3]} 30... hxg6 {[%clk
0:00:30.9]} 31. Rf1 {[%clk 0:00:08.3]} 31... Qf7 {[%clk 0:00:23.7]} 32. Rf3
{[%clk 0:00:06]} 32... Rde8 {[%clk 0:00:21.6]} 33. Rbf1 {[%clk 0:00:05.7]} 33...
R8e6 {[%clk 0:00:21.2]} 34. h4 {[%clk 0:00:05.9]} 34... Qe7 {[%clk 0:00:17.4]}
35. h5 {[%clk 0:00:04.1]} 35... gxh5 {[%clk 0:00:15.5]} 36. Nf5 {[%clk
0:00:03.6]} 36... Qf7 {[%clk 0:00:10.7]} 37. Rg3 {[%clk 0:00:03.2]} 37... Rxf5
{[%clk 0:00:09.9]} 38. Rxf5 {[%clk 0:00:01.7]} 38... Bc8 {[%clk 0:00:08.6]} 39.
Rxh5 {[%clk 0:00:01.9]} 39... Kf8 {[%clk 0:00:09]} 40. Qh8+ {[%clk 0:00:02.1]}
40... Qg8 {[%clk 0:00:09.4]} 41. Rh7 {[%clk 0:00:03]} 41... Re7 {[%clk
0:00:06.2]} 42. Qxg8+ {[%clk 0:00:02.9]} 42... Kxg8 {[%clk 0:00:06.3]} 43. Rh6
{[%clk 0:00:03.8]} 43... Rf7 {[%clk 0:00:05.4]} 44. Rhg6 {[%clk 0:00:04.7]}
44... Kf8 {[%clk 0:00:05]} 45. Bd1 {[%clk 0:00:05.4]} 45... Be6 {[%clk
0:00:04.5]} 46. Bh5 {[%clk 0:00:05.3]} 46... Nxh5 {[%clk 0:00:04.3]} 47. Rg8+
{[%clk 0:00:05.3]} 47... Ke7 {[%clk 0:00:04.8]} 48. R3g6 {[%clk 0:00:03.8]}
48... Nf4 {[%clk 0:00:04.9]} 49. R6g7 {[%clk 0:00:03.8]} 49... Nd3 {[%clk
0:00:04.5]} 50. Rxf7+ {[%clk 0:00:04.1]} 50... Kxf7 {[%clk 0:00:04]} 51. Ra8
{[%clk 0:00:05]} 51... Nc1 {[%clk 0:00:03.8]} 52. Ra7+ {[%clk 0:00:05.1]} 52...
Kg6 {[%clk 0:00:03.2]} 53. Rxa6 {[%clk 0:00:05.7]} 53... Nxb3 {[%clk 0:00:03.9]}
54. Rxd6 {[%clk 0:00:06.2]} 54... Bxc4 {[%clk 0:00:04.6]} 55. a5 {[%clk
0:00:05.8]} 55... Nxa5 {[%clk 0:00:04.9]} 56. e5 {[%clk 0:00:03.6]} 56... b3
{[%clk 0:00:05.1]} 57. Rxf6+ {[%clk 0:00:03.9]} 57... Kg7 {[%clk 0:00:05.6]} 58.
Rb6 {[%clk 0:00:04.8]} 0-1

[Event "*** Titled Tuesday Blitz"]
[Site "Chess.com"]
[Date "2020.05.12"]
[Round "5"]
[White "artooon"]
[Black "jtayar88"]
[Result "1-0"]
[WhiteElo "2729"]
[BlackElo "2558"]
[TimeControl "180+1"]
[EndTime "10:56:41 PDT"]
[Termination "artooon won on time"]

1. e4 {[%clk 0:03:00.9]} 1... c5 {[%clk 0:02:58.9]} 2. Nf3 {[%clk 0:03:01]} 2...
d6 {[%clk 0:02:58.4]} 3. d4 {[%clk 0:03:01.5]} 3... Nf6 {[%clk 0:02:56.7]} 4.
Nc3 {[%clk 0:03:01.5]} 4... cxd4 {[%clk 0:02:56.5]} 5. Nxd4 {[%clk 0:03:02.4]}
5... a6 {[%clk 0:02:57.1]} 6. Bg5 {[%clk 0:03:02.4]} 6... e6 {[%clk 0:02:55.8]}
7. f4 {[%clk 0:03:02.5]} 7... Be7 {[%clk 0:02:54.4]} 8. Qd2 {[%clk 0:03:02.4]}
8... h6 {[%clk 0:02:53.1]} 9. Bh4 {[%clk 0:03:00.9]} 9... Nxe4 {[%clk
0:02:48.1]} 10. Bxe7 {[%clk 0:02:54]} 10... Nxd2 {[%clk 0:02:45.4]} 11. Bxd8
{[%clk 0:02:54.4]} 11... Nxf1 {[%clk 0:02:45]} 12. Bc7 {[%clk 0:02:43.2]} 12...
Ne3 {[%clk 0:02:38.7]} 13. Kf2 {[%clk 0:02:39.7]} 13... Ng4+ {[%clk 0:02:28.5]}
14. Kf3 {[%clk 0:02:39]} 14... Nf6 {[%clk 0:02:25.2]} 15. Bxd6 {[%clk
0:02:36.5]} 15... b5 {[%clk 0:02:24.5]} 16. Rhe1 {[%clk 0:02:32.4]} 16... Bb7+
{[%clk 0:02:24.3]} 17. Kf2 {[%clk 0:02:32.9]} 17... Nbd7 {[%clk 0:02:21.9]} 18.
f5 {[%clk 0:02:31.7]} 18... e5 {[%clk 0:02:15.7]} 19. Nf3 {[%clk 0:02:23]} 19...
e4 {[%clk 0:02:07.6]} 20. Nd2 {[%clk 0:02:10.2]} 20... O-O-O {[%clk 0:01:39.8]}
21. Bb4 {[%clk 0:01:59.9]} 21... e3+ {[%clk 0:01:10.5]} 22. Kxe3 {[%clk
0:01:55.6]} 22... Ne5 {[%clk 0:01:08]} 23. Be7 {[%clk 0:01:33.8]} 23... Nd5+
{[%clk 0:00:58.4]} 24. Nxd5 {[%clk 0:01:28.2]} 24... Rxd5 {[%clk 0:00:59.3]} 25.
Bb4 {[%clk 0:01:22.9]} 25... Rhd8 {[%clk 0:00:52]} 26. Re2 {[%clk 0:00:53.5]}
26... Nc6 {[%clk 0:00:38.4]} 27. a3 {[%clk 0:00:36.4]} 27... Nd4 {[%clk
0:00:26.6]} 28. Kf2 {[%clk 0:00:28.7]} 28... Rxf5+ {[%clk 0:00:21.9]} 29. Nf3
{[%clk 0:00:21.5]} 29... Nxe2 {[%clk 0:00:13.8]} 30. Kxe2 {[%clk 0:00:20.7]}
30... Re8+ {[%clk 0:00:13.9]} 31. Kf2 {[%clk 0:00:20.6]} 31... g5 {[%clk
0:00:13.1]} 32. h3 {[%clk 0:00:20.4]} 32... h5 {[%clk 0:00:10.6]} 33. Kg3 {[%clk
0:00:20.1]} 33... Bxf3 {[%clk 0:00:10.4]} 34. gxf3 {[%clk 0:00:21]} 34... Re3
{[%clk 0:00:10.4]} 35. Rf1 {[%clk 0:00:21.4]} 35... Re2 {[%clk 0:00:10.8]} 36.
h4 {[%clk 0:00:19.4]} 36... gxh4+ {[%clk 0:00:08.9]} 37. Kxh4 {[%clk 0:00:20.3]}
37... Rxc2 {[%clk 0:00:09]} 38. Bc3 {[%clk 0:00:20]} 38... Kb7 {[%clk
0:00:08.1]} 39. Kg3 {[%clk 0:00:20.2]} 39... Kb6 {[%clk 0:00:08.1]} 40. Re1
{[%clk 0:00:20.4]} 40... a5 {[%clk 0:00:07.7]} 41. Re7 {[%clk 0:00:20.2]} 41...
b4 {[%clk 0:00:04.9]} 42. axb4 {[%clk 0:00:21.1]} 42... axb4 {[%clk 0:00:05.8]}
43. Bd4+ {[%clk 0:00:22]} 43... Kb5 {[%clk 0:00:05.1]} 44. Rb7+ {[%clk
0:00:22.1]} 44... Kc4 {[%clk 0:00:05.3]} 45. Bh8 {[%clk 0:00:21.6]} 45... Kb3
{[%clk 0:00:05.6]} 46. Bd4 {[%clk 0:00:20.4]} 46... Rc4 {[%clk 0:00:05.8]} 47.
Bh8 {[%clk 0:00:19.5]} 47... Rg4+ {[%clk 0:00:05.8]} 48. fxg4 {[%clk 0:00:19.3]}
48... hxg4 {[%clk 0:00:05.1]} 49. Kxg4 {[%clk 0:00:20.2]} 49... Rc5 {[%clk
0:00:05]} 50. Bg7 {[%clk 0:00:19.9]} 50... Rc4+ {[%clk 0:00:04]} 51. Kf5 {[%clk
0:00:20.4]} 51... Kc2 {[%clk 0:00:04.5]} 52. Be5 {[%clk 0:00:16.8]} 52... b3
{[%clk 0:00:04.1]} 53. Rxf7 {[%clk 0:00:15.5]} 53... Rc5 {[%clk 0:00:03.9]} 54.
Rh7 {[%clk 0:00:15.7]} 54... Rxe5+ {[%clk 0:00:03.7]} 55. Kxe5 {[%clk
0:00:16.6]} 55... Kxb2 {[%clk 0:00:04.6]} 56. Kd4 {[%clk 0:00:17.1]} 56... Ka1
{[%clk 0:00:03.2]} 57. Kc3 {[%clk 0:00:16.1]} 57... b2 {[%clk 0:00:03.2]} 58.
Ra7+ {[%clk 0:00:16.6]} 58... Kb1 {[%clk 0:00:02.9]} 59. Kb3 {[%clk 0:00:15.8]}
1-0

[Event "*** Titled Tuesday Blitz"]
[Site "Chess.com"]
[Date "2020.05.12"]
[Round "5"]
[White "Jenia84"]
[Black "MikeSailer"]
[Result "1-0"]
[WhiteElo "2256"]
[BlackElo "2000"]
[TimeControl "180+1"]
[EndTime "10:56:42 PDT"]
[Termination "Jenia84 won on time"]

1. e4 {[%clk 0:03:00.9]} 1... d5 {[%clk 0:02:59.8]} 2. exd5 {[%clk 0:03:00.4]}
2... Qxd5 {[%clk 0:02:56.9]} 3. Nc3 {[%clk 0:03:01.3]} 3... Qd6 {[%clk 0:02:56]}
4. Nf3 {[%clk 0:03:00.4]} 4... Nf6 {[%clk 0:02:54]} 5. Be2 {[%clk 0:02:59.4]}
5... c6 {[%clk 0:02:53]} 6. O-O {[%clk 0:02:59.1]} 6... Bg4 {[%clk 0:02:47.5]}
7. h3 {[%clk 0:02:56.5]} 7... Bh5 {[%clk 0:02:46.3]} 8. d4 {[%clk 0:02:55.2]}
8... e6 {[%clk 0:02:43.9]} 9. Bg5 {[%clk 0:02:52]} 9... Be7 {[%clk 0:02:42.1]}
10. Bxf6 {[%clk 0:02:51.3]} 10... gxf6 {[%clk 0:02:30.4]} 11. Ne4 {[%clk
0:02:48.1]} 11... Qc7 {[%clk 0:02:21.5]} 12. Ng3 {[%clk 0:02:47.4]} 12... Bxf3
{[%clk 0:02:16.4]} 13. Bxf3 {[%clk 0:02:47.1]} 13... Nd7 {[%clk 0:02:16.2]} 14.
c4 {[%clk 0:02:45.8]} 14... O-O-O {[%clk 0:02:13.1]} 15. Qa4 {[%clk 0:02:44.2]}
15... Kb8 {[%clk 0:02:09.6]} 16. b4 {[%clk 0:02:44]} 16... Nb6 {[%clk
0:02:07.4]} 17. Qb3 {[%clk 0:02:44.2]} 17... Rxd4 {[%clk 0:02:06.4]} 18. Rfc1
{[%clk 0:02:37.2]} 18... Rhd8 {[%clk 0:02:02.8]} 19. a4 {[%clk 0:02:36.3]} 19...
Qf4 {[%clk 0:02:02.3]} 20. Ne2 {[%clk 0:02:30.7]} 20... Qd2 {[%clk 0:01:54]} 21.
Nxd4 {[%clk 0:02:29]} 21... Rxd4 {[%clk 0:01:49.6]} 22. a5 {[%clk 0:02:23.7]}
22... Nd7 {[%clk 0:01:37.3]} 23. Rd1 {[%clk 0:02:22.1]} 23... Qf4 {[%clk
0:01:24.5]} 24. Rxd4 {[%clk 0:02:17.8]} 24... Qxd4 {[%clk 0:01:22.9]} 25. Rd1
{[%clk 0:02:18.1]} 25... Qf4 {[%clk 0:01:09.9]} 26. Rxd7 {[%clk 0:02:17.6]}
26... Bd6 {[%clk 0:01:08.7]} 27. c5 {[%clk 0:02:06.2]} 27... Qh2+ {[%clk
0:01:02.4]} 28. Kf1 {[%clk 0:02:06]} 28... Bf4 {[%clk 0:00:57.4]} 29. Qd3 {[%clk
0:01:58.5]} 29... a6 {[%clk 0:00:50.5]} 30. Rxf7 {[%clk 0:01:56.2]} 30... Qh1+
{[%clk 0:00:48.4]} 31. Ke2 {[%clk 0:01:55.4]} 31... Qc1 {[%clk 0:00:45.9]} 32.
Qd8+ {[%clk 0:01:54.3]} 32... Ka7 {[%clk 0:00:45.5]} 33. Qb6+ {[%clk 0:01:54]}
33... Ka8 {[%clk 0:00:42.4]} 34. Rf8+ {[%clk 0:01:53.8]} 34... Bb8 {[%clk
0:00:43.1]} 35. Rxb8+ {[%clk 0:01:44.2]} 35... Kxb8 {[%clk 0:00:41.1]} 36. Bxc6
{[%clk 0:01:33.5]} 36... Qc4+ {[%clk 0:00:40]} 37. Kf3 {[%clk 0:01:26.6]} 37...
Qd3+ {[%clk 0:00:36.2]} 38. Kf4 {[%clk 0:01:14.7]} 38... e5+ {[%clk 0:00:32]}
39. Kg4 {[%clk 0:01:14.5]} 39... Qg6+ {[%clk 0:00:23.7]} 40. Kf3 {[%clk
0:01:11.3]} 40... Qf5+ {[%clk 0:00:23.9]} 41. Ke3 {[%clk 0:01:08]} 41... Qf4+
{[%clk 0:00:22.7]} 42. Kd3 {[%clk 0:00:56.8]} 42... Qd4+ {[%clk 0:00:21]} 43.
Kc2 {[%clk 0:00:54.5]} 43... Qc4+ {[%clk 0:00:21]} 44. Kd2 {[%clk 0:00:54.5]}
44... Qd4+ {[%clk 0:00:19.2]} 45. Ke2 {[%clk 0:00:54.2]} 45... Qc4+ {[%clk
0:00:15.6]} 46. Kd1 {[%clk 0:00:51.9]} 46... Qd3+ {[%clk 0:00:12.8]} 47. Kc1
{[%clk 0:00:51.4]} 47... Qc3+ {[%clk 0:00:08.3]} 48. Kd1 {[%clk 0:00:51.5]}
48... Qd3+ {[%clk 0:00:08.7]} 49. Ke1 {[%clk 0:00:51.7]} 49... Qc3+ {[%clk
0:00:09.1]} 50. Kf1 {[%clk 0:00:49.7]} 50... Qc1+ {[%clk 0:00:08.8]} 51. Ke2
{[%clk 0:00:49.3]} 51... Qc2+ {[%clk 0:00:09.3]} 52. Ke1 {[%clk 0:00:43.3]}
52... Qc1+ {[%clk 0:00:09.3]} 53. Ke2 {[%clk 0:00:43.4]} 53... Qc2+ {[%clk
0:00:09.8]} 54. Ke3 {[%clk 0:00:42.3]} 54... Qc3+ {[%clk 0:00:09.6]} 55. Ke4
{[%clk 0:00:39.4]} 55... Qd4+ {[%clk 0:00:06.9]} 56. Kf5 {[%clk 0:00:37.6]}
56... Qf4+ {[%clk 0:00:04.7]} 57. Ke6 {[%clk 0:00:37.3]} 57... Qc4+ {[%clk
0:00:02.7]} 58. Ke7 {[%clk 0:00:27.1]} 1-0

[Event "*** Titled Tuesday Blitz"]
[Site "Chess.com"]
[Date "2020.05.12"]
[Round "5"]
[White "Ginzburg_Yakov"]
[Black "PIwan"]
[Result "1-0"]
[WhiteElo "2400"]
[BlackElo "2508"]
[TimeControl "180+1"]
[EndTime "10:56:43 PDT"]
[Termination "Ginzburg_Yakov won on time"]

1. e4 {[%clk 0:03:00.7]} 1... e6 {[%clk 0:03:00.9]} 2. d4 {[%clk 0:03:00]} 2...
d5 {[%clk 0:03:01.4]} 3. Nc3 {[%clk 0:02:59.8]} 3... Nf6 {[%clk 0:03:01.3]} 4.
Bg5 {[%clk 0:02:58.7]} 4... Bb4 {[%clk 0:03:00.7]} 5. e5 {[%clk 0:02:58.4]} 5...
h6 {[%clk 0:03:00.9]} 6. Bd2 {[%clk 0:02:57.6]} 6... Bxc3 {[%clk 0:03:01]} 7.
bxc3 {[%clk 0:02:57.3]} 7... Ne4 {[%clk 0:03:01]} 8. Qg4 {[%clk 0:02:55.6]} 8...
Kf8 {[%clk 0:03:01.2]} 9. Bc1 {[%clk 0:02:53.6]} 9... c5 {[%clk 0:02:50]} 10.
Bd3 {[%clk 0:02:42]} 10... Nxc3 {[%clk 0:02:26.3]} 11. dxc5 {[%clk 0:02:38]}
11... Qc7 {[%clk 0:01:59.7]} 12. Nf3 {[%clk 0:02:37]} 12... Nc6 {[%clk
0:01:40.9]} 13. O-O {[%clk 0:02:06.9]} 13... Nxe5 {[%clk 0:01:21.1]} 14. Nxe5
{[%clk 0:02:03.4]} 14... Qxe5 {[%clk 0:01:22]} 15. Bf4 {[%clk 0:01:33.3]} 15...
Qf6 {[%clk 0:01:21.5]} 16. Qg3 {[%clk 0:01:21.5]} 16... Qg6 {[%clk 0:00:23.2]}
17. Bd6+ {[%clk 0:00:51]} 17... Kg8 {[%clk 0:00:22]} 18. Qxg6 {[%clk 0:00:42.9]}
18... fxg6 {[%clk 0:00:21.3]} 19. Bxg6 {[%clk 0:00:42.7]} 19... Bd7 {[%clk
0:00:20.3]} 20. Rae1 {[%clk 0:00:41.3]} 20... Nb5 {[%clk 0:00:19.9]} 21. Be7
{[%clk 0:00:40.6]} 21... h5 {[%clk 0:00:18.7]} 22. Bg5 {[%clk 0:00:39]} 22...
Nd4 {[%clk 0:00:17.7]} 23. c3 {[%clk 0:00:38]} 23... Nc6 {[%clk 0:00:17.6]} 24.
f4 {[%clk 0:00:37.7]} 24... h4 {[%clk 0:00:17.4]} 25. f5 {[%clk 0:00:37.5]}
25... exf5 {[%clk 0:00:16]} 26. Rd1 {[%clk 0:00:37.5]} 26... Ne5 {[%clk
0:00:12.1]} 27. Bxf5 {[%clk 0:00:36.7]} 27... Bxf5 {[%clk 0:00:09.5]} 28. Rxf5
{[%clk 0:00:37.5]} 28... Nf7 {[%clk 0:00:09.4]} 29. Bf4 {[%clk 0:00:36.4]} 29...
Rd8 {[%clk 0:00:05.4]} 30. c4 {[%clk 0:00:35]} 30... d4 {[%clk 0:00:04.9]} 31.
Rd5 {[%clk 0:00:35]} 31... Kh7 {[%clk 0:00:03.4]} 32. R1xd4 {[%clk 0:00:34.9]}
32... Rde8 {[%clk 0:00:02.6]} 33. Kf2 {[%clk 0:00:34.4]} 33... Rhf8 {[%clk
0:00:02.3]} 34. Rf5 {[%clk 0:00:32.7]} 34... Nh6 {[%clk 0:00:02.4]} 35. Rxf8
{[%clk 0:00:32.7]} 35... Rxf8 {[%clk 0:00:03.3]} 36. Ke2 {[%clk 0:00:33]} 36...
Nf5 {[%clk 0:00:03.4]} 37. Re4 {[%clk 0:00:33.5]} 37... Rf7 {[%clk 0:00:03.2]}
38. Be5 {[%clk 0:00:33.2]} 38... Kg6 {[%clk 0:00:03]} 39. g4 {[%clk 0:00:33.4]}
39... hxg3 {[%clk 0:00:02.8]} 40. hxg3 {[%clk 0:00:33.8]} 40... Re7 {[%clk
0:00:03.1]} 41. Kd3 {[%clk 0:00:33.6]} 41... Kf7 {[%clk 0:00:02.8]} 42. c6
{[%clk 0:00:33.4]} 42... bxc6 {[%clk 0:00:02.8]} 43. Bf4 {[%clk 0:00:33.1]}
43... g6 {[%clk 0:00:02.8]} 44. Rxe7+ {[%clk 0:00:33.1]} 44... Kxe7 {[%clk
0:00:03.7]} 45. Ke4 {[%clk 0:00:33.4]} 45... Ke6 {[%clk 0:00:03.8]} 46. g4
{[%clk 0:00:34.2]} 46... Ne7 {[%clk 0:00:03.2]} 47. Be3 {[%clk 0:00:32.2]} 47...
a6 {[%clk 0:00:02.9]} 48. Kf4 {[%clk 0:00:31.8]} 48... Nc8 {[%clk 0:00:02.8]}
49. Kg5 {[%clk 0:00:32.2]} 49... Kf7 {[%clk 0:00:03.2]} 50. Bc5 {[%clk
0:00:32.4]} 50... a5 {[%clk 0:00:01.8]} 51. a4 {[%clk 0:00:32.4]} 51... Kg7
{[%clk 0:00:01.3]} 52. Bd4+ {[%clk 0:00:32]} 52... Kf7 {[%clk 0:00:02.2]} 53.
Bc5 {[%clk 0:00:31.6]} 53... Kg7 {[%clk 0:00:02.3]} 54. Bd4+ {[%clk 0:00:31.5]}
54... Kf7 {[%clk 0:00:02.5]} 55. c5 {[%clk 0:00:31.5]} 55... Ne7 {[%clk
0:00:02.5]} 56. Bc3 {[%clk 0:00:31.6]} 56... Nd5 {[%clk 0:00:03.4]} 57. Bxa5
{[%clk 0:00:32]} 57... Ne3 {[%clk 0:00:02.7]} 58. Bb6 {[%clk 0:00:31.1]} 58...
Nc4 {[%clk 0:00:01.1]} 59. a5 {[%clk 0:00:31.4]} 1-0

[Event "*** Titled Tuesday Blitz"]
[Site "Chess.com"]
[Date "2020.05.12"]
[Round "5"]
[White "Fusikk"]
[Black "KarstenHansch"]
[Result "1/2-1/2"]
[WhiteElo "2501"]
[BlackElo "2360"]
[TimeControl "180+1"]
[EndTime "10:56:47 PDT"]
[Termination "Game drawn by repetition"]

1. d4 {[%clk 0:03:00.9]} 1... d5 {[%clk 0:02:51.4]} 2. c4 {[%clk 0:02:58.8]}
2... e6 {[%clk 0:02:51.4]} 3. Nf3 {[%clk 0:02:58.6]} 3... Nf6 {[%clk 0:02:51.6]}
4. Nc3 {[%clk 0:02:58.8]} 4... Be7 {[%clk 0:02:51]} 5. Bg5 {[%clk 0:02:58.3]}
5... O-O {[%clk 0:02:50.9]} 6. e3 {[%clk 0:02:56]} 6... Nbd7 {[%clk 0:02:50.5]}
7. cxd5 {[%clk 0:02:48.3]} 7... Nxd5 {[%clk 0:02:49.3]} 8. Bxe7 {[%clk
0:02:49.2]} 8... Nxe7 {[%clk 0:02:46.3]} 9. Be2 {[%clk 0:02:46.6]} 9... c5
{[%clk 0:02:46]} 10. O-O {[%clk 0:02:46.2]} 10... cxd4 {[%clk 0:02:45]} 11. Nxd4
{[%clk 0:02:44.1]} 11... Qb6 {[%clk 0:02:44.7]} 12. Qb3 {[%clk 0:02:41.4]} 12...
Nf5 {[%clk 0:02:17.2]} 13. Nxf5 {[%clk 0:02:38.5]} 13... exf5 {[%clk 0:02:17.3]}
14. Nd5 {[%clk 0:02:32.5]} 14... Qxb3 {[%clk 0:02:07]} 15. axb3 {[%clk
0:02:33.4]} 15... a6 {[%clk 0:02:06.9]} 16. Rac1 {[%clk 0:02:30.6]} 16... Ne5
{[%clk 0:02:01.9]} 17. Nb6 {[%clk 0:02:27.4]} 17... Rb8 {[%clk 0:02:01.2]} 18.
Rc7 {[%clk 0:02:24.5]} 18... Be6 {[%clk 0:01:56.2]} 19. b4 {[%clk 0:02:24.3]}
19... Rfd8 {[%clk 0:01:54.9]} 20. f4 {[%clk 0:02:21.4]} 20... Nd7 {[%clk
0:01:52.4]} 21. Nxd7 {[%clk 0:02:05.3]} 21... Rxd7 {[%clk 0:01:52.2]} 22. Rfc1
{[%clk 0:02:05.7]} 22... Kf8 {[%clk 0:01:40.6]} 23. Rxd7 {[%clk 0:01:38.4]}
23... Bxd7 {[%clk 0:01:37.9]} 24. Rc7 {[%clk 0:01:38.6]} 24... Bc6 {[%clk
0:01:18.2]} 25. Bc4 {[%clk 0:01:37.7]} 25... Be8 {[%clk 0:01:06.8]} 26. Kf2
{[%clk 0:01:30.6]} 26... b6 {[%clk 0:01:04.6]} 27. Bxa6 {[%clk 0:01:28.2]} 27...
b5 {[%clk 0:00:47.6]} 28. Bb7 {[%clk 0:01:22.1]} 28... Rd8 {[%clk 0:00:44]} 29.
Rc2 {[%clk 0:01:08.3]} 29... Ke7 {[%clk 0:00:36.7]} 30. Ke2 {[%clk 0:01:03.2]}
30... Rd6 {[%clk 0:00:35.6]} 31. Rd2 {[%clk 0:00:57.7]} 31... Rxd2+ {[%clk
0:00:28.8]} 32. Kxd2 {[%clk 0:00:57.5]} 32... Kd6 {[%clk 0:00:28.6]} 33. Kc3
{[%clk 0:00:57.2]} 33... Bd7 {[%clk 0:00:28]} 34. Kd4 {[%clk 0:00:57]} 34... Be6
{[%clk 0:00:27.4]} 35. h3 {[%clk 0:00:54.3]} 35... Bc4 {[%clk 0:00:26.7]} 36. g4
{[%clk 0:00:49.8]} 36... Be6 {[%clk 0:00:21]} 37. gxf5 {[%clk 0:00:41.9]} 37...
Bxf5 {[%clk 0:00:21]} 38. h4 {[%clk 0:00:42.5]} 38... Bd7 {[%clk 0:00:20.5]} 39.
e4 {[%clk 0:00:42.4]} 39... f6 {[%clk 0:00:17.8]} 40. Bd5 {[%clk 0:00:38]} 40...
h6 {[%clk 0:00:16]} 41. e5+ {[%clk 0:00:32.7]} 41... fxe5+ {[%clk 0:00:15.9]}
42. fxe5+ {[%clk 0:00:33.6]} 42... Ke7 {[%clk 0:00:16.3]} 43. h5 {[%clk
0:00:24.6]} 43... Be8 {[%clk 0:00:16.1]} 44. Bf3 {[%clk 0:00:24.4]} 44... g6
{[%clk 0:00:15.6]} 45. hxg6 {[%clk 0:00:23.8]} 45... Bxg6 {[%clk 0:00:15.8]} 46.
Kc5 {[%clk 0:00:22]} 46... Be8 {[%clk 0:00:15.8]} 47. Bg4 {[%clk 0:00:20.1]}
47... h5 {[%clk 0:00:15]} 48. Bh3 {[%clk 0:00:20]} 48... h4 {[%clk 0:00:15]} 49.
Bg4 {[%clk 0:00:19.8]} 49... Bd7 {[%clk 0:00:13.8]} 50. Bf3 {[%clk 0:00:11.5]}
50... Ke6 {[%clk 0:00:09.6]} 51. Kd4 {[%clk 0:00:11.3]} 51... Kf5 {[%clk
0:00:09.6]} 52. Kd5 {[%clk 0:00:10.7]} 52... h3 {[%clk 0:00:06.9]} 53. Kd6
{[%clk 0:00:10.2]} 53... Be6 {[%clk 0:00:06]} 54. Bh1 {[%clk 0:00:09.8]} 54...
Bc4 {[%clk 0:00:05.8]} 55. Bb7 {[%clk 0:00:07.2]} 55... Bb3 {[%clk 0:00:05.7]}
56. Bc6 {[%clk 0:00:05.9]} 56... h2 {[%clk 0:00:05.2]} 57. Bb7 {[%clk
0:00:05.3]} 57... Bc4 {[%clk 0:00:05.1]} 58. Bc6 {[%clk 0:00:05.4]} 58... Bb3
{[%clk 0:00:05.2]} 59. Bb7 {[%clk 0:00:05.3]} 59... Bc4 {[%clk 0:00:04.4]} 60.
Bc6 {[%clk 0:00:05]} 60... Ba2 {[%clk 0:00:04]} 61. Bb7 {[%clk 0:00:04.8]} 61...
Bc4 {[%clk 0:00:01.9]} 1/2-1/2